Cogmind - Beta 10.2 @@@ ROGUE MODE // 2022.01.11 @ 16:57:49 Player: theq629 Result: Self-destructed Performance ------------- Evolutions (2) 1000 Regions Visited (3) 600 Robots Destroyed (14) 70 Value Destroyed (420) 420 Prototype IDs (0) 0 Alien Tech Used (0) 0 Bonus (0) 0 TOTAL SCORE: 2090 Bonus ------- None Cogmind --------- Core Integrity 522/550 Matter 291/300 Energy 100/100 System Corruption 0% Temperature Cool (6) Movement Walking (120) Location -8/Materials Parts ------- > --- POWER (2) -------- (None) > --- PROPULSION (4) --- Aluminum Leg Aluminum Leg > --- UTILITY (3) ------ Heat Sink Small Storage Unit Seismic Analyzer > --- WEAPON (2) ------- Heavy Particle Cannon > --- INVENTORY (6) ---- Aluminum Leg Light Armor Plating Mini Grenade Launcher Mini Grenade Launcher Peak State ------------ > --- POWER ------------ Light Ion Engine Improved Ion Engine > --- PROPULSION ------- Aluminum Leg Aluminum Leg Aluminum Leg Aluminum Leg > --- UTILITY ---------- Heat Sink Small Storage Unit Seismic Analyzer > --- WEAPON ----------- Light EM Pulse Cannon Light Assault Rifle > --- INVENTORY -------- Aluminum Leg Light Armor Plating Mini Grenade Launcher Mini Grenade Launcher [Rating: 13] Favorites ----------- Power Improved Ion Engine Engine Improved Ion Engine Propulsion Aluminum Leg Leg Aluminum Leg Utility Small Storage Unit Device Heat Sink Storage Small Storage Unit Processor Seismic Analyzer Weapon Medium Laser Energy Gun Medium Laser Energy Cannon Light EM Pulse Cannon Ballistic Gun Light Assault Rifle Build | -11 -10 -9 -8 ------- Run | Scr Mat Mat Mat Slots Evolved 4 | . . 2 2 Power 1 | . . . 1 Propulsion 2 | . . 1 1 Utility 1 | . . 1 . Weapon . | . . . . Parts Attached 18 | 7 . 8 3 Power 3 | 1 . 1 1 Engine 3 | 1 . 1 1 Core . | . . . . Reactor . | . . . . Propulsion 6 | 2 . 3 1 Treads . | . . . . Leg 6 | 2 . 3 1 Wheel . | . . . . Hover . | . . . . Flight . | . . . . Utility 4 | 2 . 2 . Device 2 | . . 2 . Storage 1 | 1 . . . Processor 1 | 1 . . . Hackware . | . . . . Protection . | . . . . Artifact . | . . . . Weapon 5 | 2 . 2 1 Energy Gun 2 | 2 . . . Energy Cannon 2 | . . 1 1 Ballistic Gun 1 | . . 1 . Ballistic Cannon . | . . . . Launcher . | . . . . Special Weapon . | . . . . Impact Weapon . | . . . . Slashing Weapon . | . . . . Piercing Weapon . | . . . . Special Melee Weapon . | . . . . Unidentified Prototypes . | . . . . Parts Lost 8 | . . 2 6 Power 2 | . . . 2 Propulsion 2 | . . . 2 Utility . | . . . . Weapon 4 | . . 2 2 Highest Loss Streak 6 | . . 2 6 Average Slot Usage (%) 98 | . 100 97 97 Engine 12 | . 14 11 16 Leg 31 | . 28 33 36 Device 6 | . . 9 9 Storage 11 | . 14 11 9 Processor 11 | . 14 11 9 Energy Gun 11 | . 28 6 . Energy Cannon 5 | . . 7 7 Ballistic Gun 6 | . . 8 9 Naked Turns . | . . . . Heaviest Build 20 | 11 11 17 20 Greatest Support 40 | 20 20 30 40 Greatest Overweight (x) . | . . . . Average Overweight (x) . | . . . . Largest Inventory Capacity 6 | 6 6 6 6 Average Capacity 5 | 5 6 6 6 Most Carried 6 | 2 6 6 5 Average Carried 4 | . 5 5 4 Final Capacity 6 | 6 6 6 6 Final Carried 6 | 2 6 6 4 Class Distribution -------------------- 59% | Scavenger-Mutant 40% | Mutant Dominant Class ---------------- Mutant | -10/Materials Scavenger-Mutant | -9/Materials Scavenger-Mutant | -8/Materials Resources | -11 -10 -9 -8 ----------- Run | Scr Mat Mat Mat Matter Collected 364 | 260 10 94 . Remotely . | . . . . Salvage Created 518 | 33 45 295 145 Parts 33 | 6 3 18 6 Haulers Intercepted . | . . . . Recyclers Shooed 1 | . . 1 . Parts Field Recycled . | . . . . Retrieved Matter . | . . . . Parts Self-Destructed . | . . . . Prevented . | . . . . Kills | -11 -10 -9 -8 ------- Run | Scr Mat Mat Mat Combat Hostiles Destroyed 12 | . 1 7 4 Guns 5 | . . 3 2 Cannons 4 | . . 4 . AOE 3 | . 1 . 2 Classes Destroyed 4 | 1 1 1 1 Tunneler 2 | 2 . . . Swarmer 2 | . . . 2 Grunt 7 | . 1 5 1 Sentry 3 | . . 2 1 Best Kill Streak 4 | 2 1 3 4 Combat Bots Only 4 | . 1 3 4 Max Kills in Single Turn 2 | 1 1 1 2 Gunslinging . | . . . . Exploded 2 | . 1 . 2 Melee . | . . . . Uniques/NPCs Destroyed . | . . . . Combat | -11 -10 -9 -8 -------- Run | Scr Mat Mat Mat Damage Taken 823 | . 80 358 385 Core 121 | . 23 70 28 Absorbed by Shields . | . . . . Core Remaining (%) 90 | 100 90 82 . Volleys Fired 37 | 2 3 22 10 Largest 2 | 2 2 2 2 Hottest 95 | 90 90 90 95 Shots Fired 66 | 4 6 37 19 Gun 46 | 4 6 27 9 Cannon 20 | . . 10 10 Launcher . | . . . . Special . | . . . . Kinetic 28 | . . 19 9 Thermal 13 | 2 3 5 3 Explosive . | . . . . Electromagnetic 25 | 2 3 13 7 Robot Hit Streak 19 | 2 7 16 19 Robot Miss Streak 2 | . 1 2 1 Penetration Max . | . . . . Secondary Targets . | . . . . Shots Hit Robots 52 | 2 5 29 16 Core Hits 24 | 2 1 13 8 Critical Hits . | . . . . Critical Kills . | . . . . Critical Parts Destroyed . | . . . . Melee Attacks . | . . . . Impact . | . . . . Slashing . | . . . . Piercing . | . . . . Sneak Attacks . | . . . . Combat Hostiles . | . . . . Follow-up Attacks . | . . . . Damage Inflicted 1050 | 24 108 487 431 Guns 330 | 24 62 182 62 Cannons 431 | . . 236 195 Explosions 280 | . 46 60 174 Melee . | . . . . Ramming 9 | . . 9 . Kinetic 185 | . . 123 62 Thermal 394 | . 72 98 224 Explosive . | . . . . Electromagnetic 462 | 24 36 257 145 Impact . | . . . . Slashing . | . . . . Piercing . | . . . . Highest Corruption . | . . . . Average Corruption . | . . . . Corruption Purged . | . . . . Overload Shots . | . . . . Overflow Damage 8 | . . . 8 Projectiles . | . . . . Explosions 8 | . . . 8 Melee . | . . . . Knockbacks . | . . . . Impact . | . . . . Kinetic . | . . . . Secondary . | . . . . Self-Inflicted Damage 55 | . 37 18 . Shots 2 | . 1 1 . Rammed . | . . . . Targets Rammed 1 | . . 1 . Kicked 1 | . . 1 . Crushed . | . . . . Highest Temperature 120 | 30 120 51 31 Average Temperature 25 | 18 61 17 15 Received Heat Transfer 207 | . 24 129 54 Siege Activations . | . . . . Robots Corrupted . | . . . . Combat Hostiles . | . . . . Parts Fried . | . . . . Impact Corruptions . | . . . . Robots Melted . | . . . . Combat Hostiles . | . . . . Parts Melted . | . . . . Heat Transferred 559 | . 74 211 274 Parts Sabotaged . | . . . . Parts Stolen . | . . . . Parts Stripped . | . . . . Power Chain Reactions 3 | . 1 1 1 Missiles Intercepted . | . . . . Alert | -11 -10 -9 -8 ------- Run | Scr Mat Mat Mat Peak Influence 235 | 10 26 235 147 Initial 14 | . 6 10 14 Average 67 | 1 9 107 52 Maximum Alert Level 1 | . . 1 . Low Security (%) 93 | 100 100 87 100 Level 1 6 | . . 12 . Level 2 . | . . . . Level 3 . | . . . . Level 4 . | . . . . Level 5 . | . . . . High Security . | . . . . Max Security . | . . . . Squads Dispatched 2 | . . 1 1 Investigation 1 | . . 1 . Extermination . | . . . . Reinforcement 1 | . . . 1 Assault . | . . . . Garrison . | . . . . Intercept . | . . . . Construction Impeded . | . . . . Haulers Reinforced . | . . . . Stealth | -11 -10 -9 -8 --------- Run | Scr Mat Mat Mat Distress Signals 2 | . . 2 . Communications Jammed . | . . . . Distress Signals . | . . . . Times Spotted 20 | . 2 10 8 Peak Tracking Total 7 | . 3 3 7 Tactical Retreats 2 | . . 1 1 Traps | -11 -10 -9 -8 ------- Run | Scr Mat Mat Mat Traps Triggered 1 | . . 1 . Indirectly . | . . . . Trap Hack Attempts . | . . . . Triggered . | . . . . Disarmed . | . . . . Reprogrammed . | . . . . Reused . | . . . . Traps Extracted . | . . . . Installed . | . . . . Triggered . | . . . . Machines | -11 -10 -9 -8 ---------- Run | Scr Mat Mat Mat Machines Disabled . | . . . . Max in Single Turn . | . . . . Machines Sabotaged . | . . . . Garrisons Compromised . | . . . . Overloaded Fab Kills . | . . . . Fab Network Shutdowns . | . . . . Hacking | -11 -10 -9 -8 --------- Run | Scr Mat Mat Mat Machines Accessed . | . . . . Terminals . | . . . . Fabricators . | . . . . Repair Stations . | . . . . Recycling Units . | . . . . Scanalyzers . | . . . . Garrison Access . | . . . . Total Hacks . | . . . . Successful . | . . . . Failed . | . . . . Catastrophic . | . . . . Database Lockouts . | . . . . Manual . | . . . . Terminals . | . . . . Fabricators . | . . . . Repair Stations . | . . . . Recycling Units . | . . . . Scanalyzers . | . . . . Garrison Access . | . . . . Terminal Hacks . | . . . . Fabricator Hacks . | . . . . Repair Station Hacks . | . . . . Recycling Unit Hacks . | . . . . Scanalyzer . | . . . . Garrison Access Hacks . | . . . . Unauthorized Hacks . | . . . . Terminals . | . . . . Fabricators . | . . . . Repair Stations . | . . . . Recycling Units . | . . . . Scanalyzers . | . . . . Garrison Access . | . . . . Data Cores Recovered . | . . . . Used . | . . . . Hacking Detections . | . . . . Full Trace Events . | . . . . Feedback Events . | . . . . Feedback Blocked . | . . . . Robot Schematics Acquired . | . . . . Robots Built . | . . . . Matter . | . . . . Time . | . . . . Total Robot Build Rating . | . . . . Part Schematics Acquired . | . . . . Parts Built . | . . . . Matter . | . . . . Time . | . . . . Total Part Build Rating . | . . . . Parts Repaired . | . . . . Time . | . . . . Parts Recycled . | . . . . Recycled Matter . | . . . . Retrieved Matter . | . . . . Retrieved Components . | . . . . Parts Scanalyzed . | . . . . Part Schematics Acquired . | . . . . Parts Damaged . | . . . . Bothacking | -11 -10 -9 -8 ------------ Run | Scr Mat Mat Mat Used RIF Installer . | . . . . Robots Hacked . | . . . . Non-combat . | . . . . Combat . | . . . . Robot Hacks Applied . | . . . . Relay Couplers Released . | . . . . Robots Rewired . | . . . . Allies Hacked . | . . . . Hacks Repelled . | . . . . Allies | -11 -10 -9 -8 -------- Run | Scr Mat Mat Mat Total Allies . | . . . . Largest Group . | . . . . Highest-Rated Group . | . . . . Highest-Rated Ally . | . . . . Total Orders . | . . . . Ally Attacks . | . . . . Total Damage . | . . . . Kills . | . . . . Allies Corrupted . | . . . . Allies Melted . | . . . . Intel | -11 -10 -9 -8 ------- Run | Scr Mat Mat Mat Robot Analysis Total . | . . . . Derelict Logs Recovered . | . . . . Drone Launches . | . . . . Drone Recoveries . | . . . . Exploration | -11 -10 -9 -8 ------------- Run | Scr Mat Mat Mat Turns Passed 778 | 80 191 436 71 Spaces Moved 475 | 55 125 264 31 Core 5 | 5 . . . Treads . | . . . . Legs 470 | 50 125 264 31 Wheels . | . . . . Hover . | . . . . Flight . | . . . . Fastest Speed 50 | 50 120 120 120 Average Speed 119 | 113 120 120 120 Slowest Speed 120 | 120 120 120 120 Overloaded Moves . | . . . . Propulsion Burnouts . | . . . . Robots Hopped . | . . . . Cave-ins Triggered . | . . . . Exploration Rate (%) 14 | 5 24 22 5 Regions Visited 3 Branch Regions . Pre-discovered Areas . | . . . . Known Exits Taken . | . . . . Unknown Exits Taken 3 | 1 1 1 . Scrap Searched . | . . . . Spaces Dug . | . . . . Terrain Destroyed 9 | . 2 3 4 Melee . | . . . . Projectile 1 | . . . 1 AOE 8 | . 2 3 3 Terrain Rammed . | . . . . Walls Destroyed . | . . . . Machines Disabled . | . . . . Actions | -11 -10 -9 -8 --------- Run | Scr Mat Mat Mat Total 623 | 65 160 351 47 Wait 81 | . 29 50 2 Move 472 | 54 124 263 31 Hop . | . . . . Pick Up 10 | 2 4 3 1 Fast Attach 8 | 7 . 1 . Attach 6 | . . 3 3 Detach . | . . . . Swap 4 | . . 4 . Drop 4 | . . 4 . Fire 37 | 2 3 22 10 Melee . | . . . . Ram . | . . . . Kick 1 | . . 1 . Crush . | . . . . Escape Stasis . | . . . . Rewire . | . . . . Trap . | . . . . Miscellaneous . | . . . . Route ------- -11/Scrapyard -10/Materials -9/Materials -8/Materials History --------- Turn | Location | Event 3 | -11/Scrapyard | Discovered new exit (range 15) 81 | -11/Scrapyard | Entered Materials 247 | -10/Materials | Discovered new exit (range 16) 272 | -10/Materials | Entered another Materials area 272 | -9/Materials | Evolved 2 slots: Propulsion x1, Utility x1 312 | -9/Materials | Build established: Mutant 529 | -9/Materials | Discovered new exit (range 6) 624 | -9/Materials | Build established: Scavenger-Mutant 708 | -9/Materials | Entered another Materials area 708 | -8/Materials | Evolved 2 slots: Power x1, Propulsion x1 779 | -8/Materials | Self-destructed Last Messages --------------- 00678_ K-01 Serf destroyed. 00679_ R-06 Scavenger collects Wheel. PARAMETERS=POWER_1,PROPULSION_1 LOCATION=UNKNOWN GOAL=ESCAPE 00720_ Acquired Hvy. Particle Cannon. 00750_ G-47 Trooper destroyed. 00756_ Chain reaction triggered in Lgt. Nuclear Core. 00756_ Destroyed Particle Gun. 00756_ S-10 Pest destroyed. 00762_ O-24 Administrator: "IFF HANDSHAKE FAILED. SECURING TERMINAL." 00762_ Y-45 Defender destroyed. 00766_ Imp. Ion Engine destroyed. 00766_ ALERT: Hostiles spotted, dispatching reinforcements to Terminal M006. 00768_ Lgt. EM Pulse Cannon destroyed. 00773_ Aluminum Leg destroyed. 00776_ Lgt. Assault Rifle destroyed. 00776_ Aluminum Leg destroyed. 00778_ Lgt. Ion Engine destroyed. Map ----- +----------------------------------------------------+ | ??????????????# #???########??? | | ??????????????+ ##### #??? | | ??????????????# #??? | | ??????????????##+########## #??? | | ??????????????????????????# #??? | | ??????????????????????????# #??? | | ??????????????????????????# #??? | | ??????????????????????????### ###??? | | ????????????????????????????# #????? | | ????????????????????????????# #????? | | ????????????????????????????# #????? | | ????????????????????????????# #????? | | ????????????????????????????# #????? | | ????????????????????????????# #????? | | ????????????????????????????# #????? | | ????????????????????????????# #????? | | ???????????????????????????## ##???? | | ??????????????????????###### #???? | | ??????????????????????+ ^ #???? | | ??????????????????????# #???? | | ??????????????????????## #???? | | ???????????????????????# !! ##???? | | ???????????????????????# ! #????? | | ???????????????????????# %[ #????? | | ?????????????????####### Y =% #????? | | ?????????? @l %= #????? | | ?????????????????########;#;s%=#????? | | ???????????????????????? ?# #????? | | ???????????????????????? ?# + ???? | | ??????????????????????? ## #? ?? | | ???????????????????????""" ## #???#? | | ?????????????????????? """ # ????? | | ?????????????????????? """ +? ????? | | ????????????????????? #? #???? | | ????????????????????? ? #? #???? | | ????????????????????##????##?? #????? | | ????????????????????????????????????? | | ????????????????????????????????????? | | ????????????????????????????????????? | | ????????????????????????????????????? | | ????????????????????????????????????? | | ????????????????????????????????????? | | ????????????????????????????????????? | | ????????????????????????????????????? | | ????????????????????????????????????? | | ????????????????????????????????????? | | ????????????????????????????????????? | | ????????????????????????????????????? | | ????????????????????????????????????? | | ????????????????????????????????????? | +----------------------------------------------------+ Best States ------------- Heat Dissipation 41 Energy Generation 17 Energy Capacity 290 Matter Stores 300 Matter Capacity 300 Sight Range 16 Terrain Scan Density 60 Evasion (%) 40 Item Schematics ----------------- None Robot Schematics ------------------ None Fabricated ------------ Nothing Alien Tech Used ----------------- None Achievements -------------- None Challenges ------------ None Game ------ Seed RiotSurveybotFirepult Manual? 0 Play Time 00:09:50 Cumulative 29.0 hours Start 2022.01.11 @ 16:47:49 End 2022.01.11 @ 16:57:49 Sessions 1 Manual Loads 0 Difficulty Rogue Special Mode None Game No. 48 Rogue 33 Adventurer 0 Explorer 15 Win Type - Total 0 Types 0/0/0/0/0/0/0/0/0 Lore% 20 Gallery% 30 Achievement% 21 Wizard Run 0 Options --------- ASCII 0 Keyboard 0 Movement Vi Keybinds 0 Fullscreen 2 Font 24/Terminus Map View 76x50 Tactical HUD 1 Map Filters NONE Filters NONE Steam 1 RUN: 73d4f867-e79e-4dcd-a85a-f0883ed4bd4c